bitfinex/quotes_SOLUSD_20250821
["timestamp","ask_amount","ask_price","bid_price","bid_amount"]
[1755790103251,0.06,183.6,183.59,132.06623155]
[1755790103570,0.06,183.6,183.59,131.08190841]
[1755790103864,0.73,183.6,183.58,7.32190841]
[1755790104070,0.67,183.59,183.57,7.32190841]
[1755790104444,0.06,183.6,183.58,7.32190841]
[1755790104650,0.06,183.6,183.59,7.32190841]
[1755790104858,0.06,183.6,183.59,8.02190841]
[1755790105467,0.06,183.6,183.59,51.28190841]
[1755790105642,0.06,183.6,183.59,7.32190841]
[1755790105972,0.06,183.6,183.59,8.02190841]
[1755790106458,0.06,183.6,183.59,7.32190841]
[1755790106674,0.06,183.6,183.59,8.02190841]
[1755790108239,0.06,183.6,183.58,69.96]
[1755790108439,0.06,183.6,183.59,43.94]
[1755790108675,0.06,183.6,183.59,51.26190841]
[1755790110303,0.73,183.6,183.56,7.32190841]
[1755790110593,8.05190841,183.6,183.56,43.94]
[1755790110758,7.38190841,183.6,183.56,43.94]
[1755790110961,0.67,183.59,183.56,43.94]
[1755790111184,7.38190841,183.6,183.56,43.94]
[1755790111372,0.67,183.58,183.56,43.94]
[1755790111566,0.67,183.57,183.56,43.94]
[1755790111763,0.67,183.59,183.56,43.94]
[1755790111963,0.67,183.58,183.56,43.94]
[1755790112366,0.67,183.57,183.53,7.35190841]
[1755790112676,7.99190841,183.56,183.53,43.97]
[1755790112876,0.67,183.55,183.53,43.97]
[1755790113465,0.67,183.54,183.53,43.97]
[1755790113885,7.99190841,183.54,183.53,0.03]
[1755790114090,13.59559401,183.53,183.51,0.03]
[1755790114302,7.32190841,183.52,183.51,0.03]
[1755790114616,14.26559401,183.53,183.51,0.03]
[1755790114617,0.67,183.53,183.51,0.03]
[1755790114788,0.67,183.52,183.51,0.03]
[1755790115310,7.99190841,183.52,183.51,0.03]
[1755790115509,0.67,183.52,183.51,0.03]
[1755790115683,7.99190841,183.52,183.51,0.03]
[1755790115875,21.58750242,183.52,183.51,0.03]
[1755790116694,26.0,183.49,183.43,7.32190841]
[1755790116910,7.99190841,183.48,183.43,7.32190841]
[1755790117075,7.99190841,183.47,183.4,43.94]
[1755790117275,7.99190841,183.47,183.42,7.32190841]
[1755790117708,0.67,183.47,183.42,7.32190841]
[1755790118212,0.67,183.47,183.37,33.32190841]
[1755790118510,33.32190841,183.49,183.44,7.32190841]
[1755790118678,2.84293034,183.54,183.47,7.32190841]
[1755790118679,40.26559401,183.53,183.47,7.32190841]
[1755790118878,0.67,183.53,183.44,0.7]
[1755790119079,0.67,183.53,183.49,7.32190841]
[1755790119318,0.67,183.52,183.48,7.32190841]
[1755790119507,7.32190841,183.52,183.47,7.32190841]
[1755790119816,13.59559401,183.53,183.48,7.32190841]
[1755790120025,14.26559401,183.53,183.49,7.32190841]
[1755790120204,0.67,183.53,183.49,7.32190841]
[1755790120400,0.67,183.53,183.5,7.32190841]
[1755790120606,0.67,183.57,183.52,7.32190841]
[1755790120907,5.62495925,183.6,183.47,5.45038264]
[1755790120908,0.67,183.56,183.5,0.7]
[1755790121089,7.99190841,183.56,183.51,7.32190841]
[1755790121413,7.32190841,183.54,183.49,7.32190841]
[1755790121722,13.59559401,183.52,183.45,0.7]
[1755790122033,13.59559401,183.52,183.44,0.7]
[1755790122195,7.32190841,183.5,183.45,7.32190841]
[1755790122392,7.32190841,183.48,183.43,7.32190841]
[1755790122592,13.59559401,183.5,183.42,7.32190841]
[1755790122593,7.99190841,183.47,183.42,7.32190841]
[1755790122906,26.0,183.55,183.43,0.7]
[1755790122907,0.67,183.49,183.43,0.7]
[1755790123102,7.99190841,183.49,183.44,7.32190841]
[1755790123304,0.67,183.49,183.44,7.32190841]
[1755790123508,7.99190841,183.49,183.44,8.02190841]
[1755790124018,7.32190841,183.48,183.43,7.32190841]
[1755790124188,7.32190841,183.44,183.4,0.03]
[1755790124384,7.32190841,183.45,183.4,0.03]
[1755790124608,7.99190841,183.45,183.4,0.03]
[1755790124792,20.91750242,183.44,183.4,0.03]
[1755790125043,7.32190841,183.41,183.4,0.03]
[1755790125351,20.91750242,183.41,183.4,0.03]
[1755790125512,47.58750242,183.41,183.4,0.03]
[1755790125907,40.26559401,183.41,183.4,0.03]
[1755790126131,47.58750242,183.41,183.4,0.03]
[1755790126322,47.87182556,183.41,183.4,0.03]
[1755790126816,21.87182556,183.41,183.4,0.03]
[1755790127133,14.54991715,183.41,183.4,0.03]
[1755790127442,21.87182556,183.41,183.4,0.03]
[1755790128043,14.26559401,183.41,183.4,0.03]
[1755790128211,21.58750242,183.41,183.4,0.03]
[1755790128820,14.26559401,183.41,183.4,0.03]
[1755790129218,21.58750242,183.41,183.4,0.03]
[1755790130417,21.87182556,183.41,183.4,0.03]
[1755790130936,20.91750242,183.41,183.4,0.03]
[1755790131512,47.59750242,183.41,183.4,0.03]
[1755790131830,21.59750242,183.41,183.4,0.03]
[1755790132862,40.27559401,183.41,183.4,0.03]
[1755790133034,47.59750242,183.41,183.4,0.03]
[1755790133233,21.59750242,183.41,183.4,0.03]
[1755790133573,13.59559401,183.41,183.4,0.03]
[1755790133886,7.321908,183.47,183.4,0.03]
[1755790134066,7.32190841,183.45,183.4,7.35190841]
[1755790134374,13.59559401,183.46,183.41,0.72]
[1755790134674,26.0,183.45,183.42,7.32190841]
[1755790135183,13.59559401,183.46,183.42,7.32190841]
[1755790135482,13.59559401,183.47,183.44,7.32190841]
[1755790135772,39.59559401,183.47,183.44,7.32190841]
[1755790136076,13.59559401,183.47,183.43,8.04190841]
[1755790136562,26.0,183.46,183.43,8.04190841]
[1755790137561,0.68,183.52,183.45,7.32190841]
[1755790137767,0.68,183.52,183.44,0.72]
[1755790137768,7.32190841,183.51,183.44,0.72]
[1755790137971,26.0,183.49,183.46,7.32190841]
[1755790138176,7.38190841,183.53,183.48,7.32190841]
[1755790138339,7.38190841,183.53,183.4,5.48245196]
[1755790138340,14.27559401,183.52,183.46,0.72]
[1755790138530,47.59750242,183.52,183.43,0.72]
[1755790138966,21.59750242,183.52,183.47,7.32190841]
[1755790139144,0.68,183.51,183.47,7.32190841]
[1755790139344,13.59559401,183.5,183.47,7.32190841]
[1755790139548,13.59559401,183.5,183.49,7.32190841]
[1755790139746,0.06,183.53,183.49,7.32190841]
[1755790140052,13.59559401,183.52,183.51,7.32190841]
[1755790140255,39.59559401,183.52,183.51,7.32190841]
[1755790140558,0.06,183.53,183.51,8.04190841]
[1755790140862,0.06,183.53,183.48,7.32190841]
[1755790140863,0.06,183.53,183.52,8.04190841]
[1755790142562,0.06,183.53,183.52,13.49090579]
[1755790145045,0.06,183.53,183.52,13.77522893]
[1755790145381,0.06,183.53,183.52,6.45332052]
[1755790145584,0.06,183.53,183.52,13.77522893]
[1755790148081,0.06,183.6,183.55,26.0]
[1755790148281,0.06,183.6,183.59,7.32190841]
[1755790148471,0.06,183.6,183.59,12.76882817]
[1755790148778,0.06,183.6,183.59,13.77315131]
[1755790149164,0.06,183.6,183.59,8.32623155]
[1755790149584,0.06,183.6,183.59,8.04190841]
[1755790150670,0.74,183.6,183.56,7.32190841]
[1755790150857,7.32190841,183.58,183.53,7.46406998]
[1755790151051,0.68,183.58,183.53,8.04190841]
[1755790151255,8.00190841,183.58,183.53,8.04190841]
[1755790151456,0.68,183.58,183.53,8.04190841]
[1755790151657,0.68,183.58,183.52,43.9]
[1755790151658,8.00190841,183.57,183.52,51.22190841]
[1755790151891,8.00190841,183.57,183.52,51.94190841]
[1755790152180,0.68,183.59,183.53,7.32190841]
[1755790152389,7.32190841,183.57,183.52,44.62]
[1755790152591,7.32190841,183.58,183.53,7.32190841]
[1755790152761,8.00190841,183.59,183.54,8.04190841]
[1755790152963,7.38190841,183.6,183.55,8.04190841]
[1755790153301,7.38190841,183.6,183.55,0.72]
[1755790153602,7.38190841,183.6,183.56,0.72]
[1755790153883,0.06,183.6,183.56,0.72]
[1755790154083,0.06,183.6,183.57,7.32190841]
[1755790154389,0.68,183.59,183.55,7.32190841]
[1755790155112,7.32190841,183.56,183.43,10.0]
[1755790155407,7.32190841,183.59,183.46,7.32190841]
[1755790155408,7.32190841,183.51,183.46,7.32190841]
[1755790155618,7.32190841,183.53,183.48,7.32190841]
[1755790155909,0.68,183.55,183.49,0.72]
[1755790156099,8.00190841,183.57,183.52,7.32190841]
[1755790156485,0.68,183.56,183.52,7.32190841]
[1755790156806,21.60750242,183.59,183.54,7.32190841]
[1755790156985,20.91750242,183.59,183.54,7.32190841]
[1755790157175,0.06,183.6,183.57,7.32190841]
[1755790157375,0.06,183.6,183.53,0.67]
[1755790157599,0.06,183.6,183.58,7.32190841]
[1755790157783,0.06,183.6,183.53,0.67]
[1755790157983,0.75,183.6,183.51,26.0]
[1755790158224,26.0,183.58,183.51,7.32190841]
[1755790158374,0.06,183.6,183.56,7.32190841]
[1755790158576,0.75,183.6,183.57,7.32190841]
[1755790158875,0.06,183.6,183.59,7.32190841]
[1755790159897,0.06,183.6,183.59,7.99190841]
[1755790160407,0.06,183.6,183.57,7.32190841]
[1755790160717,0.06,183.6,183.52,43.88]
[1755790160718,7.32190841,183.58,183.51,7.32190841]
[1755790160881,7.32190841,183.56,183.51,79.8]
[1755790161087,8.01190841,183.56,183.51,7.32190841]
[1755790161390,7.32190841,183.56,183.51,7.99190841]
[1755790161700,0.06,183.6,183.55,7.32190841]
[1755790162007,0.06,183.6,183.56,7.32190841]
[1755790162207,0.06,183.6,183.59,7.32190841]
[1755790162619,0.06,183.6,183.56,7.32190841]
[1755790162620,0.75,183.6,183.56,7.32190841]
[1755790162996,0.06,183.6,183.57,7.32190841]
[1755790163179,0.06,183.6,183.59,7.32190841]
[1755790163585,0.06,183.6,183.58,7.32190841]
[1755790164727,0.06,183.6,183.59,7.32190841]
[1755790164889,0.06,183.6,183.58,7.32190841]
[1755790165399,0.06,183.6,183.57,7.32190841]
[1755790165802,0.06,183.6,183.59,7.32190841]
[1755790166532,0.06,183.6,183.59,7.99190841]
[1755790166701,0.06,183.6,183.59,7.32190841]
[1755790167607,0.06,183.6,183.59,7.99190841]
[1755790167824,0.06,183.6,183.59,7.32190841]
[1755790167990,0.06,183.6,183.59,87.12190841]
[1755790168187,0.06,183.6,183.59,87.79190841]
[1755790168405,0.06,183.6,183.59,87.12190841]
[1755790168617,0.06,183.6,183.59,87.79190841]
[1755790168994,0.06,183.6,183.59,80.47]
[1755790169322,0.06,183.6,183.59,87.12190841]
[1755790169520,0.06,183.6,183.59,79.8]
[1755790170338,0.06,183.6,183.59,87.79190841]
[1755790170841,0.06,183.6,183.59,88.07623155]
[1755790172230,0.06,183.6,183.59,95.39813996]
[1755790172416,0.06,183.6,183.59,88.07623155]
[1755790172620,0.06,183.6,183.59,87.12190841]
[1755790172943,0.06,183.6,183.59,79.8]
[1755790173122,0.06,183.6,183.55,79.8]
[1755790173320,0.06,183.6,183.56,51.18190841]
[1755790173521,0.75,183.6,183.56,43.86]
[1755790173724,0.75,183.6,183.56,7.32190841]
[1755790174244,0.75,183.6,183.55,123.66]
[1755790174245,8.01190841,183.59,183.5,0.67]
[1755790174444,7.32190841,183.58,183.53,7.32190841]
[1755790174741,7.32190841,183.59,183.54,7.32190841]
[1755790174921,8.01190841,183.59,183.54,7.32190841]
[1755790175118,0.69,183.58,183.54,7.32190841]
[1755790175341,0.06,183.6,183.56,7.32190841]
[1755790175555,0.06,183.6,183.57,7.32190841]
[1755790175738,0.06,183.6,183.55,44.53]
[1755790175938,0.06,183.6,183.57,7.32190841]
[1755790176136,0.06,183.6,183.56,0.67]
[1755790176330,0.06,183.6,183.59,7.32190841]
[1755790178126,0.06,183.6,183.59,51.85190841]
[1755790178341,0.06,183.6,183.59,52.13623155]
[1755790179041,0.06,183.6,183.59,57.58315131]
[1755790179244,0.06,183.6,183.59,52.13623155]
[1755790179545,0.06,183.6,183.59,7.32190841]
[1755790179720,0.06,183.6,183.59,43.86]
[1755790180237,0.06,183.6,183.57,26.67]
[1755790180442,0.06,183.6,183.59,26.0]
[1755790180856,0.06,183.6,183.57,51.18190841]
[1755790181066,7.32190841,183.59,183.57,123.66]
[1755790181361,8.01190841,183.59,183.56,43.86]
[1755790181567,8.01190841,183.59,183.58,26.0]
[1755790181721,0.06,183.6,183.59,26.0]
[1755790182342,0.06,183.6,183.59,26.67]
[1755790182548,0.06,183.6,183.59,26.0]
[1755790182750,0.06,183.6,183.59,33.99190841]
[1755790182936,0.06,183.6,183.59,77.85190841]
[1755790183141,0.06,183.6,183.59,70.53]
[1755790183327,0.06,183.6,183.59,77.85190841]
[1755790184153,0.06,183.6,183.59,83.29882817]
[1755790184448,0.06,183.6,183.59,90.90505972]
[1755790184648,0.06,183.6,183.59,26.0]
[1755790184830,0.06,183.6,183.59,77.85190841]
[1755790185351,0.06,183.6,183.59,78.13623155]
[1755790185667,0.06,183.6,183.59,77.18190841]
[1755790186154,0.06,183.6,183.59,83.58315131]
[1755790186349,0.06,183.6,183.59,78.13623155]
[1755790186723,0.06,183.6,183.59,83.58315131]
[1755790188055,0.06,183.6,183.59,78.13623155]
[1755790188637,0.06,183.62,183.6,79.74]
[1755790188874,0.06,183.62,183.61,51.18190841]
[1755790189730,0.06,183.62,183.61,51.86190841]
[1755790190161,0.06,183.62,183.61,43.86]
[1755790190339,0.06,183.62,183.61,51.18190841]
[1755790190541,0.72,183.62,183.6,79.74]
[1755790190851,0.06,183.62,183.61,43.84]
[1755790191856,0.06,183.62,183.61,51.16190841]
[1755790192234,0.72,183.62,183.61,43.84]
[1755790192565,0.72,183.62,183.6,79.74]
[1755790192732,0.06,183.62,183.61,51.16190841]
[1755790194334,0.06,183.62,183.61,51.84190841]
[1755790194628,0.06,183.62,183.61,123.58]
[1755790194629,0.72,183.62,183.61,123.58]
[1755790195059,0.06,183.62,183.61,123.58]
[1755790195261,0.06,183.62,183.61,130.90190841]
[1755790195639,0.06,183.62,183.61,123.58]
[1755790195846,0.72,183.62,183.61,79.74]
[1755790196158,0.72,183.62,183.61,123.58]
[1755790196459,0.72,183.62,183.61,79.74]
[1755790196663,8.04190841,183.62,183.61,79.74]
[1755790197061,8.04190841,183.62,183.57,79.74]
[1755790197360,7.32190841,183.59,183.57,43.84]
[1755790197665,0.66,183.58,183.57,43.84]
[1755790197862,7.98190841,183.58,183.55,79.74]
[1755790198159,0.66,183.57,183.56,43.84]
[1755790198546,7.98190841,183.57,183.53,0.03]
[1755790198745,7.98190841,183.56,183.53,43.87]
[1755790199059,7.32190841,183.54,183.53,0.03]
[1755790199565,7.98190841,183.54,183.53,0.03]
[1755790200247,7.32190841,183.55,183.53,0.03]
[1755790200858,7.98190841,183.54,183.53,0.03]
[1755790201248,7.32190841,183.55,183.53,0.03]
[1755790201452,7.32190841,183.59,183.54,51.84190841]
[1755790201659,7.98190841,183.59,183.54,51.84190841]
[1755790201962,7.98190841,183.59,183.54,51.16190841]
[1755790202753,0.66,183.59,183.55,7.32190841]
[1755790202953,7.98190841,183.59,183.54,51.16190841]
[1755790203266,7.32190841,183.59,183.55,7.32190841]
[1755790203575,0.72,183.62,183.58,7.32190841]
[1755790203776,0.06,183.62,183.59,7.32190841]
[1755790203945,0.06,183.62,183.6,43.84]
[1755790204150,7.38190841,183.62,183.6,43.84]
[1755790204359,7.38190841,183.62,183.56,43.84]
[1755790204360,7.98190841,183.61,183.56,43.84]
[1755790204672,7.32190841,183.57,183.55,43.84]
[1755790204880,7.32190841,183.58,183.55,43.84]
[1755790205048,0.66,183.57,183.55,43.84]
[1755790205250,0.66,183.57,183.53,7.35190841]
[1755790205470,7.32190841,183.58,183.54,43.84]
[1755790205772,0.66,183.57,183.54,43.84]
[1755790205978,0.66,183.6,183.54,43.84]
[1755790206165,7.32190841,183.58,183.54,51.84190841]
[1755790206473,7.98190841,183.57,183.54,43.84]
[1755790206661,7.32190841,183.56,183.53,0.03]
[1755790206866,7.98190841,183.56,183.53,0.03]
[1755790207252,13.59559401,183.6,183.53,0.03]
[1755790207452,7.32190841,183.57,183.53,7.35190841]
[1755790207645,7.98190841,183.57,183.53,0.03]
[1755790207845,0.66,183.57,183.53,43.89]
[1755790208051,0.66,183.57,183.53,0.03]
[1755790208052,7.32190841,183.57,183.53,0.03]
[1755790208259,7.32190841,183.54,183.53,0.03]
[1755790208459,0.66,183.56,183.53,0.03]
[1755790208460,13.59559401,183.57,183.53,7.35190841]
[1755790208672,7.98190841,183.57,183.53,7.35190841]
[1755790208873,26.0,183.58,183.53,0.03]
[1755790208874,7.98190841,183.56,183.53,0.03]
[1755790209247,0.66,183.59,183.55,7.32190841]
[1755790209449,7.32190841,183.6,183.55,7.32190841]
[1755790209647,0.66,183.59,183.54,26.68]
[1755790209848,7.32190841,183.56,183.54,43.84]
[1755790210048,7.98190841,183.56,183.54,43.84]
[1755790210247,7.98190841,183.56,183.53,0.03]
[1755790210459,0.66,183.59,183.54,7.32190841]
[1755790210679,7.98190841,183.58,183.53,0.03]
[1755790211482,7.32190841,183.57,183.53,7.35190841]
[1755790211656,7.98190841,183.56,183.53,0.03]
[1755790211850,7.32190841,183.54,183.53,0.03]
[1755790212469,0.66,183.54,183.53,0.03]
[1755790213173,7.98190841,183.54,183.53,0.03]
[1755790213362,21.57750242,183.54,183.53,0.03]
[1755790213562,20.91750242,183.54,183.53,0.03]
[1755790213766,7.98190841,183.54,183.53,0.03]
[1755790214585,8.26623155,183.54,183.53,0.03]
[1755790215890,10.82496075,183.54,183.53,0.03]
[1755790217588,11.10928389,183.54,183.53,0.03]
[1755790223004,30.12490377,183.54,183.53,0.03]
[1755790223799,30.12490377,183.54,183.51,0.03]
[1755790223800,21.20182556,183.52,183.51,0.03]
[1755790224094,20.91750242,183.52,183.51,0.03]
[1755790224874,21.87182556,183.52,183.51,0.03]
[1755790226275,64.77750242,183.52,183.51,0.03]
[1755790226488,20.91750242,183.52,183.51,0.03]
[1755790226684,21.58750242,183.52,183.51,0.03]
[1755790226871,21.87182556,183.52,183.51,0.03]
[1755790228892,65.73182556,183.52,183.51,0.03]
[1755790229076,21.20182556,183.52,183.51,0.03]
[1755790229282,65.73182556,183.52,183.51,0.03]
[1755790229890,65.06182556,183.52,183.51,0.03]
[1755790230281,65.73182556,183.52,183.51,0.03]
[1755790230799,26.0,183.5,183.49,0.03]
[1755790231107,20.91750242,183.5,183.49,0.03]
[1755790231400,21.58750242,183.5,183.49,0.03]
[1755790232380,47.58750242,183.5,183.49,0.03]
[1755790232588,13.87991715,183.49,183.47,0.03]
[1755790232801,21.20182556,183.47,183.37,0.7]
[1755790233105,21.20182556,183.47,183.38,0.7]
[1755790233304,21.87182556,183.47,183.38,0.7]
[1755790233498,21.87182556,183.47,183.39,0.7]
[1755790234030,26.0,183.41,183.34,7.32190841]
[1755790234198,13.59559401,183.39,183.35,8.02190841]
[1755790234508,0.67,183.51,183.38,7.32190841]
[1755790234810,7.32190841,183.45,183.4,7.32190841]
[1755790235108,13.59559401,183.46,183.41,0.7]
[1755790235109,13.59559401,183.42,183.41,0.7]
[1755790235288,13.59559401,183.45,183.41,0.7]
[1755790235700,13.59559401,183.45,183.42,0.7]
[1755790235901,2.8442403,183.44,183.43,0.7]
[1755790236308,33.32190841,183.45,183.43,0.7]
[1755790236481,7.32190841,183.44,183.4,0.7]
[1755790236685,7.32190841,183.44,183.38,0.7]
[1755790236686,7.32190841,183.41,183.38,0.7]
[1755790236884,7.32190841,183.4,183.39,0.7]
[1755790237108,13.59559401,183.43,183.37,0.7]
[1755790237302,7.32190841,183.4,183.37,0.7]
[1755790237607,57.45559401,183.43,183.37,0.7]
[1755790237608,7.32190841,183.39,183.37,0.7]
[1755790237788,7.32190841,183.38,183.37,0.7]
[1755790237982,7.32190841,183.38,183.33,7.32190841]
[1755790238179,7.32190841,183.39,183.34,7.32190841]
[1755790238509,13.59559401,183.37,183.34,0.7]
[1755790238802,7.32190841,183.37,183.35,0.7]
[1755790239004,7.32190841,183.37,183.32,7.32190841]
[1755790239208,7.32190841,183.37,183.26,12.77842025]
[1755790239510,7.32190841,183.37,183.32,7.32190841]
[1755790239697,7.32190841,183.37,183.33,0.7]
[1755790240014,7.32190841,183.35,183.34,0.7]
[1755790240180,7.32190841,183.35,183.25,26.0]
[1755790240378,7.32190841,183.35,183.21,41.72512299]
[1755790240379,7.32190841,183.31,183.26,8.02190841]
[1755790240589,7.32190841,183.32,183.28,7.32190841]
[1755790240791,7.32190841,183.32,183.29,0.7]
[1755790241108,7.32190841,183.32,183.27,7.32190841]
[1755790241426,7.32190841,183.32,183.3,0.7]
[1755790241587,7.32190841,183.32,183.31,0.7]
[1755790242213,7.32190841,183.32,183.27,0.7]
[1755790242516,7.32190841,183.28,183.25,0.7]
[1755790242725,13.59559401,183.3,183.22,0.7]
[1755790243031,7.32190841,183.23,183.2,0.7]
[1755790243185,7.32190841,183.23,183.18,7.42190841]
[1755790243383,13.59559401,183.28,183.21,0.7]
[1755790243605,69.86,183.31,183.26,0.03]
[1755790243788,33.32190841,183.27,183.26,0.03]
[1755790244299,26.0,183.27,183.26,0.03]
[1755790244791,43.88,183.33,183.26,0.73]
[1755790245015,7.32190841,183.29,183.26,0.73]
[1755790245252,43.88,183.34,183.26,0.73]
[1755790245253,7.32190841,183.31,183.26,0.73]
[1755790245452,7.32190841,183.27,183.26,0.03]
[1755790245630,0.67,183.29,183.26,0.03]
[1755790245955,7.32190841,183.27,183.26,0.03]
[1755790246142,39.59559401,183.31,183.26,0.03]
[1755790246342,13.59559401,183.3,183.26,0.73]
[1755790246543,7.32190841,183.29,183.27,0.7]
[1755790246868,7.32190841,183.31,183.28,0.7]
[1755790247074,7.32190841,183.29,183.26,0.03]
[1755790247221,7.32190841,183.28,183.26,0.03]
[1755790247427,0.28432314,183.32,183.27,0.7]
[1755790247639,0.28432314,183.32,183.26,0.03]
[1755790247640,13.87991715,183.27,183.26,0.03]
[1755790247845,21.89182556,183.27,183.26,0.03]
[1755790248044,21.60750242,183.27,183.26,0.03]
[1755790248245,20.91750242,183.27,183.26,0.03]
[1755790248761,7.32190841,183.27,183.26,0.03]
[1755790248965,7.32190841,183.28,183.26,0.03]
[1755790249180,7.32190841,183.28,183.26,0.73]
[1755790249464,7.32190841,183.28,183.26,0.03]
[1755790249671,7.32190841,183.27,183.26,0.03]
[1755790250539,8.01190841,183.27,183.26,0.03]
[1755790251158,21.89182556,183.27,183.26,0.03]
[1755790251635,21.60750242,183.27,183.26,0.03]
[1755790251846,20.91750242,183.27,183.26,0.03]
[1755790252049,21.60750242,183.27,183.26,0.03]
[1755790252565,21.89182556,183.27,183.26,0.03]
[1755790254580,29.21373397,183.27,183.26,0.03]
[1755790255090,20.91750242,183.27,183.26,0.03]
[1755790255384,46.91750242,183.27,183.26,0.03]
[1755790255688,26.0,183.27,183.26,0.73]
[1755790255843,7.32190841,183.28,183.26,0.73]
[1755790256044,13.59559401,183.31,183.26,0.73]
[1755790256246,13.59559401,183.31,183.27,0.7]
[1755790256464,7.32190841,183.28,183.26,0.03]
[1755790256944,7.32190841,183.28,183.26,0.73]
[1755790257169,7.32190841,183.27,183.26,0.03]
[1755790258578,26.0,183.27,183.26,0.03]
[1755790258747,33.32190841,183.27,183.26,0.03]
[1755790260570,26.0,183.27,183.26,0.73]
[1755790260741,2.84454704,183.29,183.26,0.73]
[1755790260742,28.84454704,183.29,183.26,0.73]
[1755790260946,7.32190841,183.28,183.26,0.73]
[1755790261145,33.32190841,183.29,183.27,0.7]
[1755790261347,26.0,183.29,183.26,0.03]
[1755790261645,33.32190841,183.29,183.27,0.7]
[1755790261970,26.0,183.29,183.27,0.7]
[1755790262194,26.0,183.28,183.26,0.03]
[1755790262342,7.351908,183.37,183.27,7.32190841]
[1755790262548,7.32190841,183.34,183.29,7.32190841]
[1755790262749,7.32190841,183.34,183.3,0.7]
[1755790262969,7.32190841,183.34,183.31,0.7]
[1755790263161,7.32190841,183.32,183.26,0.03]
[1755790263371,7.32190841,183.3,183.27,0.7]
[1755790263553,60.39917866,183.36,183.27,8.02190841]
[1755790263554,7.32190841,183.31,183.27,8.02190841]
[1755790263751,17.12917866,183.36,183.28,0.7]
[1755790263962,7.32190841,183.3,183.28,0.7]
[1755790264161,16.43917866,183.36,183.28,0.7]
[1755790264162,2.84358465,183.36,183.29,7.32190841]
[1755790264362,7.32190841,183.34,183.3,0.7]
[1755790264682,7.32190841,183.31,183.28,0.7]
[1755790264975,7.32190841,183.31,183.26,0.03]
[1755790265186,7.32190841,183.3,183.28,0.7]
[1755790265380,7.32190841,183.29,183.26,0.03]
[1755790265579,7.32190841,183.28,183.26,0.03]
[1755790266387,7.32190841,183.27,183.26,0.03]
[1755790267299,0.69,183.35,183.26,0.73]
[1755790267477,7.32190841,183.3,183.26,0.73]
[1755790267703,26.0,183.31,183.26,0.03]
[1755790267976,7.32190841,183.27,183.26,0.03]
[1755790268360,0.69,183.3,183.26,0.03]
[1755790268589,7.32190841,183.27,183.26,0.03]
[1755790269891,8.01190841,183.27,183.26,0.03]
[1755790270460,0.69,183.31,183.26,0.03]
[1755790270682,26.0,183.3,183.26,0.03]
[1755790270984,7.32190841,183.27,183.26,0.03]
[1755790271290,26.0,183.3,183.26,0.03]
[1755790271457,0.69,183.32,183.26,0.03]
[1755790271662,0.69,183.32,183.26,0.73]
[1755790271860,26.0,183.31,183.26,0.03]
[1755790272085,7.32190841,183.27,183.26,0.03]
[1755790272868,0.69,183.3,183.26,0.03]
[1755790273070,8.01190841,183.27,183.26,0.03]
[1755790273777,21.60750242,183.27,183.26,0.03]
[1755790273970,7.32190841,183.27,183.26,0.03]
[1755790275099,0.69,183.3,183.26,0.03]
[1755790275406,7.32190841,183.28,183.26,0.03]
[1755790275777,0.69,183.3,183.26,0.03]
[1755790275961,7.32190841,183.27,183.26,0.03]
[1755790277188,0.7,183.31,183.26,0.03]